bitfinex/quotes_SOLUSD_20250416
["timestamp","ask_amount","ask_price","bid_price","bid_amount"]
[1744814490000,35.64981327,127.15,127.1,35.64981327]
[1744814490202,35.64981327,127.14,127.1,35.64981327]
[1744814490670,35.64981327,127.14,127.09,69.51801779]
[1744814490996,7.86348981,127.17,127.12,35.64981327]
[1744814490997,7.86367294,127.17,127.12,35.64981327]
[1744814491169,7.86367294,127.17,127.13,35.64981327]
[1744814491170,43.51348621,127.17,127.13,35.64981327]
[1744814491882,43.54271111,127.18,127.14,35.64981327]
[1744814492393,35.64981327,127.16,127.1,18.64964886]
[1744814492695,35.64981327,127.16,127.11,35.64981327]
[1744814492897,35.64981327,127.16,127.12,35.64981327]
[1744814493098,43.51403254,127.16,127.11,43.51656594]
[1744814493394,43.51403254,127.16,127.1,43.51734805]
[1744814493395,35.64981327,127.14,127.1,43.51734805]
[1744814493775,35.64981327,127.15,127.1,43.51734805]
[1744814494193,35.64981327,127.13,127.06,6.2295]
[1744814494386,35.64981327,127.11,127.07,7.86967813]
[1744814494591,35.64981327,127.11,127.07,43.5194914]
[1744814494796,35.64981327,127.13,127.09,35.64981327]
[1744814495093,35.64981327,127.12,127.07,43.5194914]
[1744814495395,14.15360371,127.15,127.08,35.64981327]
[1744814495594,35.64981327,127.13,127.09,35.64981327]
[1744814495796,35.64981327,127.12,127.08,35.64981327]
[1744814495985,35.64981327,127.13,127.09,35.64981327]
[1744814496292,35.64981327,127.13,127.07,53.54387345]
[1744814496500,35.64981327,127.13,127.09,35.64981327]
[1744814496888,7.86520371,127.15,127.09,43.51781276]
[1744814497188,35.64981327,127.13,127.09,43.51781276]
[1744814497879,20.54436619,127.16,127.1,35.64981327]
[1744814498077,35.64981327,127.15,127.1,35.64981327]
[1744814498572,35.64981327,127.15,127.11,35.64981327]
[1744814498878,35.64981327,127.15,127.12,7.86658275]
[1744814499078,0.03,127.18,127.14,35.64981327]
[1744814499386,0.03,127.18,127.17,35.64981327]
[1744814499787,0.03,127.18,127.13,51.10174886]
[1744814499993,0.03,127.18,127.14,35.64981327]
[1744814500195,0.03,127.18,127.15,35.64981327]
[1744814500604,0.03,127.18,127.17,35.64981327]
[1744814500788,0.03,127.18,127.17,88.16295194]
[1744814500995,1e-08,127.18,127.17,88.16295194]
[1744814503311,1e-08,127.2,127.19,52.77464886]
[1744814503626,0.03,127.23,127.19,52.77464886]
[1744814503627,0.03,127.23,127.19,124.0742754]
[1744814503781,0.03,127.23,127.22,35.64981327]
[1744814504108,0.03,127.23,127.22,43.51021257]
[1744814504721,0.03,127.23,127.22,7.8603993]
[1744814505001,0.03,127.23,127.22,43.51021257]
[1744814506511,0.03,127.23,127.22,62.15986143]
[1744814506806,1e-08,127.23,127.22,88.15986143]
[1744814507306,0.03,127.27,127.22,107.8108597]
[1744814507512,0.03,127.27,127.25,35.64981327]
[1744814508214,0.03,127.27,127.25,7.85854616]
[1744814508507,0.03,127.27,127.25,43.50835943]
[1744814509108,0.03,127.27,127.25,7.85854616]
[1744814509693,0.03,127.27,127.25,43.50835943]
[1744814510807,0.03,127.27,127.25,7.85854616]
[1744814511502,0.03,127.27,127.25,43.50835943]
[1744814513507,0.03,127.27,127.25,69.50835943]
[1744814513690,0.03,127.27,127.25,88.15800829]
[1744814513886,0.03,127.27,127.26,18.64964886]
[1744814514097,0.03,127.27,127.26,54.29946213]
[1744814514900,0.03,127.27,127.26,62.15739078]
[1744814515425,1e-08,127.27,127.26,62.15739078]
[1744814515633,1e-08,127.27,127.26,97.80720405]
[1744814517218,1e-08,127.28,127.26,97.80720405]
[1744814517425,1e-08,127.28,127.27,54.29946213]
[1744814517619,0.03,127.29,127.27,54.29946213]
[1744814517620,1e-08,127.29,127.27,54.29946213]
[1744814517802,1e-08,127.29,127.28,61.64981327]
[1744814518201,1e-08,127.29,127.28,80.29946213]
[1744814519015,1e-08,127.3,127.29,7.85607667]
[1744814519225,1e-08,127.3,127.29,43.50588994]
[1744814519522,1e-08,127.3,127.29,78.649579]
[1744814520329,0.03,127.33,127.32,26.0]
[1744814520515,1e-08,127.33,127.32,80.29946213]
[1744814520911,1e-08,127.33,127.32,61.64981327]
[1744814521124,1e-08,127.33,127.32,69.50403884]
[1744814522032,1e-08,127.33,127.32,33.85422557]
[1744814522541,1e-08,127.33,127.32,7.85422557]
[1744814523044,35.64981328,127.33,127.3,7.85545954]
[1744814523211,35.64981327,127.31,127.24,83.0]
[1744814523427,35.64981327,127.3,127.25,55.29568293]
[1744814523618,35.64981327,127.3,127.25,81.29568293]
[1744814524111,35.64981327,127.31,127.26,35.64981327]
[1744814524445,35.64981327,127.3,127.26,35.64981327]
[1744814525248,35.64981327,127.31,127.27,43.50712449]
[1744814525412,35.64981327,127.3,127.27,7.85731122]
[1744814525612,35.64981327,127.28,127.26,7.85766438]
[1744814525833,35.64981327,127.29,127.26,7.85766438]
[1744814526170,35.64981327,127.28,127.26,7.85766438]
[1744814526332,35.64981327,127.27,127.23,35.64981327]
[1744814526515,1e-08,127.33,127.29,26.0]
[1744814526715,1e-08,127.33,127.32,35.64981327]
[1744814527034,1e-08,127.33,127.32,91.5595754]
[1744814527240,1e-08,127.33,127.32,112.21380097]
[1744814528709,1e-08,127.34,127.33,18.64964886]
[1744814529015,1e-08,127.34,127.33,54.29946213]
[1744814529218,1e-08,127.34,127.33,26.50325759]
[1744814529432,1e-08,127.34,127.33,62.15307086]
[1744814531934,1e-08,127.34,127.33,43.503422]
[1744814532229,1e-08,127.34,127.33,62.15307086]
[1744814533513,0.03,127.36,127.35,44.64964886]
[1744814533709,0.03,127.36,127.35,80.29946213]
[1744814534942,0.03,127.39,127.37,7.85114234]
[1744814535119,0.03,127.39,127.38,89.9492754]
[1744814535318,1.6534,127.45,127.39,35.64981327]
[1744814535524,37.30321327,127.45,127.4,35.64981327]
[1744814535725,35.64981327,127.43,127.37,40.27899819]
[1744814535931,35.64981327,127.43,127.37,27.47899819]
[1744814536132,35.64981327,127.42,127.38,35.64981327]
[1744814536718,35.64981327,127.39,127.35,7.85237534]
[1744814537046,35.64981327,127.4,127.36,35.64981327]
[1744814538041,7.84834303,127.42,127.36,35.64981327]
[1744814538337,35.64981327,127.42,127.37,35.64981327]
[1744814538518,37.30321327,127.45,127.41,35.64981327]
[1744814538715,35.64981327,127.43,127.36,44.64964886]
[1744814538937,35.64981327,127.42,127.38,35.64981327]
[1744814539131,35.64981327,127.39,127.36,7.85156982]
[1744814539331,35.64981327,127.38,127.34,7.85299198]
[1744814539641,35.64981327,127.38,127.34,43.50280525]
[1744814539830,35.64981327,127.37,127.34,7.85299198]
[1744814540142,35.64981327,127.36,127.33,7.85335106]
[1744814540439,1.532,127.39,127.34,35.64981327]
[1744814540647,1.532,127.39,127.35,35.64981327]
[1744814540826,42.27761327,127.4,127.36,35.64981327]
[1744814541033,35.64981327,127.39,127.34,43.50280525]
[1744814541240,35.64981327,127.37,127.34,7.85299198]
[1744814541437,35.64981327,127.38,127.34,7.85299198]
[1744814541939,35.64981327,127.37,127.33,7.85338048]
[1744814542136,35.64981327,127.38,127.34,35.64981327]
[1744814542519,35.64981327,127.39,127.34,35.64981327]
[1744814542719,42.27761327,127.4,127.35,35.64981327]
[1744814542925,35.64981327,127.39,127.36,7.85175879]
[1744814543841,42.27761327,127.4,127.36,43.50157206]
[1744814544226,12.8,127.41,127.36,43.50157206]
[1744814544227,48.44981327,127.41,127.36,43.50157206]
[1744814544422,12.8,127.41,127.37,35.64981327]
[1744814544928,48.44981327,127.41,127.37,35.64981327]
[1744814545124,48.44981327,127.41,127.38,7.85052598]
[1744814545326,12.8,127.41,127.38,43.50033925]
[1744814545536,37.18181327,127.42,127.38,43.50033925]
[1744814545932,37.18181327,127.42,127.38,7.85052598]
[1744814546129,35.64981327,127.41,127.38,7.85052598]
[1744814546340,37.18181327,127.42,127.38,43.50033925]
[1744814547245,45.02996217,127.42,127.37,35.64981327]
[1744814547448,37.18181327,127.42,127.37,35.64981327]
[1744814547743,37.18181327,127.42,127.35,7.85237534]
[1744814547744,35.64981327,127.38,127.35,7.85237534]
[1744814548045,9.38008448,127.42,127.37,35.64981327]
[1744814548238,35.64981327,127.41,127.36,35.64981327]
[1744814548439,35.64981327,127.4,127.31,25.00674886]
[1744814548756,35.64981327,127.36,127.32,7.85422557]
[1744814548944,35.64981327,127.38,127.34,35.64981327]
[1744814549253,35.64981327,127.39,127.34,35.64981327]
[1744814549442,35.64981327,127.39,127.35,7.85237534]
[1744814549758,35.64981327,127.39,127.34,35.64981327]
[1744814549759,35.64981327,127.38,127.34,7.852678]
[1744814550124,35.64981327,127.38,127.33,43.50313573]
[1744814550327,35.64981327,127.37,127.33,7.85332246]
[1744814550543,35.64981327,127.37,127.33,43.50313573]
[1744814551159,35.64981327,127.38,127.33,43.50313573]
[1744814551451,35.64981327,127.35,127.31,7.85484251]
[1744814551622,7.85054208,127.38,127.31,43.50465578]
[1744814551826,35.64981327,127.36,127.31,43.50465578]
[1744814552359,35.64981327,127.38,127.34,35.64981327]
[1744814552546,1.532,127.42,127.37,35.64981327]
[1744814552743,37.18181327,127.42,127.38,35.64981327]
[1744814553262,37.18181327,127.42,127.38,7.85052598]
[1744814553463,35.64981327,127.41,127.38,7.85052598]
[1744814553833,41.87361327,127.43,127.38,43.50033925]
[1744814554034,35.64981327,127.42,127.38,43.50033925]
[1744814555135,49.95741327,127.45,127.41,35.64981327]
[1744814555328,14.3076,127.45,127.41,43.498094]
[1744814556352,12.8,127.45,127.42,35.64981327]
[1744814556547,12.8,127.45,127.41,43.498094]
[1744814557061,0.03,127.46,127.43,35.64981327]
[1744814557359,35.67981327,127.46,127.42,7.84782441]
[1744814557563,35.64981327,127.45,127.42,7.84782441]
[1744814557935,35.67981327,127.46,127.42,43.49763768]
[1744814558446,0.03,127.46,127.43,35.64981327]
[1744814558952,0.03,127.46,127.42,7.84782441]
[1744814559155,0.03,127.46,127.42,43.49763768]
[1744814559459,35.64981327,127.45,127.41,35.64981327]
[1744814559755,35.64981327,127.42,127.39,7.84990972]
[1744814560836,35.64981327,127.41,127.37,43.50095561]
[1744814561262,35.64981327,127.4,127.37,7.85114234]
[1744814561642,35.64981327,127.39,127.36,7.85147398]
[1744814561842,35.64981327,127.4,127.36,7.85147398]
[1744814562136,35.64981327,127.4,127.36,43.50128725]
[1744814562345,35.64981327,127.4,127.36,7.85147398]
[1744814562669,35.64981327,127.39,127.35,7.85237534]
[1744814563337,7.8037,127.43,127.35,7.85237534]
[1744814563338,35.64981327,127.38,127.35,7.85237534]
[1744814563760,35.64981327,127.36,127.3,19.70110856]
[1744814563933,35.64981327,127.37,127.33,35.64981327]
[1744814564135,35.64981327,127.38,127.33,35.64981327]
[1744814564547,35.64981327,127.36,127.31,63.14176205]
[1744814564955,35.64981327,127.37,127.32,35.64981327]
[1744814565143,35.64981327,127.39,127.34,35.64981327]
[1744814565753,20.5093997,127.4,127.34,35.64981327]
[1744814565754,12.66,127.4,127.34,35.64981327]
[1744814565964,35.64981327,127.39,127.34,35.64981327]
[1744814566556,35.64981327,127.38,127.33,35.64981327]
[1744814566756,35.64981327,127.38,127.34,7.85299198]
[1744814567869,35.64981327,127.37,127.32,7.85422557]
[1744814568073,35.64981327,127.34,127.31,7.85460663]
[1744814568254,35.64981327,127.32,127.3,0.063]
[1744814568652,35.64981327,127.31,127.3,0.063]
[1744814568847,7.85425951,127.32,127.3,0.063]
[1744814568848,35.64981327,127.32,127.3,0.063]
[1744814569073,35.64981327,127.31,127.3,0.063]
[1744814569558,37.16191327,127.31,127.3,0.063]
[1744814570352,7.8536746,127.33,127.3,0.063]
[1744814570353,35.64981327,127.33,127.3,0.063]
[1744814570655,14.273,127.35,127.3,35.71281327]
[1744814570852,35.64981327,127.34,127.3,43.56799996]
[1744814571055,35.64981327,127.33,127.3,0.063]
[1744814571763,35.64981327,127.32,127.3,0.063]
[1744814571953,35.64981327,127.31,127.3,0.063]
[1744814575747,35.64981327,127.32,127.3,0.063]
[1744814575947,1.613,127.35,127.3,35.71281327]
[1744814576181,1.613,127.35,127.31,35.64981327]
[1744814576481,12.68,127.37,127.34,35.64981327]
[1744814576647,6.3432,127.4,127.34,35.64981327]
[1744814576648,35.64981327,127.39,127.34,35.64981327]
[1744814576849,35.64981327,127.38,127.35,7.85237534]
[1744814577360,14.19256051,127.4,127.35,7.85237534]
[1744814577361,35.64981327,127.39,127.35,43.50218861]
[1744814577552,41.99301327,127.4,127.35,43.50218861]
[1744814577752,35.64981327,127.4,127.36,35.64981327]
[1744814578164,14.3426,127.41,127.36,35.64981327]
[1744814578354,35.64981327,127.4,127.36,35.64981327]
[1744814578948,14.3426,127.41,127.37,7.85114234]
[1744814579158,48.32981327,127.41,127.37,43.50095561]
[1744814579455,12.68,127.41,127.38,35.64981327]
[1744814580445,35.64981327,127.4,127.35,27.48331369]
[1744814580652,35.64981327,127.39,127.35,63.13312696]
[1744814580850,35.64981327,127.37,127.35,7.85237534]
[1744814581063,12.68,127.41,127.35,43.50218861]
[1744814581265,12.68,127.41,127.37,35.64981327]
[1744814581660,48.32981327,127.41,127.36,35.64981327]
[1744814582466,48.32981327,127.41,127.37,35.64981327]
[1744814582670,35.64981327,127.4,127.36,7.85175879]
[1744814582977,35.64981327,127.4,127.36,43.50157206]
[1744814583667,35.64981327,127.39,127.34,35.64981327]
[1744814583864,35.64981327,127.38,127.34,35.64981327]
[1744814584278,35.64981327,127.39,127.34,35.64981327]
[1744814584875,35.64981327,127.39,127.34,43.50252676]
[1744814585279,35.64981327,127.39,127.34,7.85271349]
[1744814585476,43.49965939,127.4,127.35,35.64981327]
[1744814586062,48.32981327,127.41,127.36,35.64981327]
[1744814586269,1.6164,127.44,127.39,35.64981327]
[1744814586563,35.64981327,127.41,127.36,35.64981327]
[1744814586772,35.64981327,127.41,127.37,35.64981327]
[1744814586973,35.64981327,127.42,127.38,7.85052598]
[1744814587556,35.64981327,127.39,127.35,7.85237534]
[1744814587763,35.64981327,127.38,127.35,7.85237534]
[1744814587981,35.64981327,127.38,127.34,7.85279556]
[1744814588168,35.64981327,127.37,127.34,7.85279556]
[1744814588368,35.64981327,127.38,127.34,7.85279556]
[1744814589169,35.64981327,127.37,127.33,43.50321308]
[1744814590877,35.64981327,127.34,127.3,12.743]
[1744814591181,35.64981327,127.34,127.31,7.85455239]
[1744814591867,35.64981327,127.35,127.31,43.50436566]
[1744814592172,35.64981327,127.35,127.31,7.85455239]
[1744814593697,35.64981327,127.34,127.31,7.85455239]
[1744814593880,35.64981327,127.33,127.3,0.063]
[1744814594178,35.64981327,127.32,127.3,0.063]
[1744814594759,35.64981327,127.31,127.3,0.063]
[1744814595059,35.64981327,127.33,127.3,0.063]
[1744814595258,48.28981327,127.35,127.3,35.71281327]
[1744814595478,1.6552,127.43,127.34,61.64981327]
[1744814595661,1.6552,127.43,127.37,26.0]
[1744814595862,35.64981327,127.43,127.33,18.64964886]
[1744814596084,35.64981327,127.4,127.32,42.29881327]
[1744814596280,35.64981327,127.37,127.32,6.649]
[1744814596483,35.64981327,127.34,127.32,7.85375332]
[1744814596667,35.64981327,127.33,127.31,7.85457636]
[1744814596874,26.0,127.37,127.3,43.56824659]
[1744814597068,35.64981327,127.35,127.31,35.64981327]
[1744814597385,35.64981327,127.36,127.32,35.64981327]
[1744814597566,35.64981327,127.37,127.33,35.64981327]
[1744814597980,48.28981327,127.38,127.33,35.64981327]
[1744814598169,61.64981327,127.41,127.37,35.64981327]
[1744814598370,26.0,127.41,127.37,35.64981327]
[1744814598571,12.64,127.42,127.39,35.64981327]
[1744814598880,37.18221327,127.45,127.4,35.64981327]
[1744814599066,12.67,127.46,127.42,35.64981327]
[1744814599265,0.03,127.46,127.43,35.64981327]
[1744814599465,0.03,127.46,127.44,35.64981327]
[1744814599667,35.67981327,127.46,127.41,6.2334]
[1744814599986,0.03,127.46,127.42,35.64981327]
[1744814600484,35.67981327,127.46,127.43,7.84744565]
[1744814600882,35.64981327,127.45,127.41,43.49849076]
[1744814601205,35.67981327,127.46,127.41,43.49849076]
[1744814601488,35.67981327,127.46,127.41,7.84867749]
[1744814601664,35.67981327,127.46,127.42,35.64981327]
[1744814601863,0.03,127.46,127.43,35.64981327]
[1744814602078,0.03,127.46,127.45,35.64981327]
[1744814602587,0.03,127.46,127.44,43.49644303]
[1744814602793,35.64981327,127.45,127.41,7.84867749]
[1744814602977,35.64981327,127.45,127.41,43.49849076]
[1744814603282,0.03,127.46,127.4,7.84901891]
[1744814603490,35.64981327,127.43,127.39,35.64981327]
[1744814604187,35.64981327,127.42,127.37,35.64981327]
[1744814604388,35.64981327,127.41,127.36,35.64981327]
[1744814604681,35.64981327,127.4,127.37,7.85095679]
[1744814605692,35.64981327,127.4,127.36,7.8514778]
[1744814605993,35.64981327,127.4,127.36,43.50129107]
[1744814606193,7.84744565,127.43,127.36,43.50129107]
[1744814606395,35.64981327,127.4,127.36,43.50129107]
[1744814606691,35.64981327,127.4,127.36,7.8514778]
[1744814607595,35.64981327,127.38,127.35,7.85211185]
[1744814607981,35.64981327,127.38,127.34,7.85281924]
[1744814608181,35.64981327,127.38,127.34,43.50263251]
[1744814608588,35.64981327,127.37,127.31,7.85484251]
[1744814608781,35.64981327,127.35,127.31,7.85484251]
[1744814609198,61.64981327,127.38,127.31,43.50465578]
[1744814609495,35.64981327,127.35,127.31,43.50465578]
[1744814609688,12.64,127.39,127.31,7.85484251]
[1744814609883,12.64,127.39,127.35,35.64981327]
[1744814610202,48.28981327,127.39,127.35,35.64981327]
[1744814611613,35.64981327,127.41,127.37,35.64981327]
[1744814611898,12.64,127.43,127.39,35.64981327]
[1744814612093,35.64981327,127.44,127.4,35.64981327]
[1744814612300,0.03,127.46,127.42,35.64981327]
[1744814612506,0.03,127.46,127.39,35.64981327]
[1744814612507,7.87581095,127.46,127.39,35.64981327]
[1744814612710,35.64981327,127.44,127.4,35.64981327]
[1744814612896,35.64981327,127.45,127.4,35.64981327]
[1744814613507,35.64981327,127.43,127.39,35.64981327]
[1744814613809,35.64981327,127.42,127.39,7.84970181]
[1744814614021,35.64981327,127.43,127.39,7.84970181]
[1744814614718,35.64981327,127.4,127.36,35.64981327]
[1744814615401,12.64,127.43,127.39,35.64981327]
[1744814615718,35.64981327,127.41,127.35,27.48331369]
[1744814616011,35.64981327,127.41,127.37,43.50055743]
[1744814616525,48.28981327,127.43,127.37,7.85074416]
[1744814616701,48.28981327,127.43,127.38,35.64981327]
[1744814617219,48.28981327,127.43,127.37,7.85074416]
[1744814617220,48.28981327,127.43,127.39,35.64981327]
[1744814617594,56.13738828,127.43,127.39,35.64981327]
[1744814617799,35.64981327,127.4,127.37,7.85074416]
[1744814618205,7.8484219,127.42,127.37,43.50055743]
[1744814618406,56.13750943,127.43,127.39,35.64981327]
[1744814618792,35.64981327,127.42,127.38,35.64981327]
[1744814619510,35.64981327,127.42,127.38,43.50000972]
[1744814619995,43.49799255,127.42,127.38,7.85019645]
[1744814620207,20.48756085,127.43,127.39,35.64981327]
[1744814620523,35.64981327,127.42,127.38,43.50000972]
[1744814620709,35.64981327,127.42,127.38,7.85019645]
[1744814620909,35.64981327,127.42,127.37,43.50067419]
[1744814621514,35.64981327,127.41,127.37,43.50067419]
[1744814621701,35.64981327,127.4,127.37,7.85086092]
[1744814622108,35.64981327,127.41,127.37,43.50067419]
[1744814622309,45.0253012,127.42,127.37,43.50067419]
[1744814622510,35.64981327,127.41,127.37,43.50067419]
[1744814622922,12.64,127.43,127.4,35.64981327]
[1744814623128,0.03,127.46,127.42,35.64981327]
[1744814623308,7.87569001,127.46,127.38,35.64981327]
[1744814623509,0.03,127.46,127.43,35.64981327]
[1744814623716,0.03,127.46,127.44,35.64981327]
[1744814623914,0.03,127.46,127.4,6.1613]
[1744814624100,0.03,127.46,127.43,35.64981327]
[1744814624306,0.03,127.46,127.45,35.64981327]
[1744814625518,0.03,127.46,127.45,43.49602747]
[1744814625731,0.03,127.47,127.45,43.49602747]
[1744814625925,0.03,127.47,127.46,35.64981327]
[1744814629825,0.03,127.47,127.43,35.64981327]
[1744814630123,0.03,127.47,127.42,35.64981327]
[1744814630124,35.64981327,127.46,127.42,35.64981327]
[1744814630323,35.64981327,127.45,127.41,35.64981327]
[1744814630829,35.64981327,127.45,127.4,43.49889268]
[1744814631205,0.03,127.47,127.44,35.64981327]
[1744814631410,0.03,127.47,127.46,35.64981327]
[1744814631813,0.03,127.47,127.44,35.64981327]
[1744814632125,0.03,127.47,127.4,53.47231331]
[1744814632308,0.03,127.47,127.44,35.64981327]
[1744814632508,0.03,127.47,127.45,35.64981327]
[1744814632906,0.03,127.47,127.46,35.64981327]
[1744814634022,0.03,127.47,127.46,43.49541188]
[1744814639417,0.03,127.47,127.46,62.14506074]
[1744814639726,1e-08,127.47,127.46,62.14506074]
[1744814640834,14.1325,127.58,127.5,18.64964886]
[1744814641040,35.64981327,127.57,127.5,18.64964886]
[1744814641211,14.1325,127.58,127.51,35.64981327]
[1744814641212,35.64981327,127.56,127.51,35.64981327]
[1744814641409,35.67981327,127.53,127.47,18.64964886]
[1744814641632,0.03,127.53,127.49,35.64981327]
[1744814642336,35.64981327,127.52,127.47,43.4947964]
[1744814642551,35.64981327,127.52,127.48,35.64981327]
[1744814642718,35.64981327,127.52,127.47,7.84498313]
[1744814643035,35.64981327,127.52,127.48,35.64981327]
[1744814643427,0.03,127.53,127.48,43.49405026]
[1744814643739,35.67981327,127.53,127.48,43.49405026]
[1744814644033,0.03,127.53,127.5,35.64981327]
[1744814644228,35.67981327,127.53,127.49,35.64981327]
[1744814644421,35.64981327,127.52,127.48,43.49405026]
[1744814644743,0.03,127.53,127.49,35.64981327]
[1744814644929,35.67981327,127.53,127.49,35.64981327]
[1744814645617,35.67981327,127.53,127.49,43.49315531]
[1744814646441,43.52117255,127.53,127.49,7.84334204]
[1744814647434,0.03,127.53,127.5,35.64981327]
[1744814648139,0.03,127.53,127.52,35.64981327]
[1744814649426,0.03,127.53,127.52,43.49172042]
[1744814649920,2.9087309,127.59,127.53,18.64964886]
[1744814650130,2.9087309,127.59,127.58,35.64981327]
[1744814650838,2.9087309,127.59,127.52,27.44667502]
[1744814651037,2.9087309,127.59,127.55,35.64981327]
[1744814651253,2.9087309,127.59,127.57,35.64981327]
[1744814651443,2.9087309,127.59,127.58,43.48803242]
[1744814651825,43.48212507,127.68,127.59,18.64964886]
[1744814652025,35.64981327,127.63,127.58,7.83821915]
[1744814652224,7.8323118,127.68,127.58,43.48803242]
[1744814652529,35.64981327,127.63,127.59,35.64981327]
[1744814652839,43.48212507,127.68,127.59,35.64981327]
[1744814653030,35.64981327,127.6,127.53,19.60214215]
[1744814653227,7.7884,127.66,127.59,35.64981327]
[1744814653447,7.86392087,127.65,127.58,43.48766152]
[1744814653653,7.86392087,127.65,127.56,43.48926137]
[1744814653947,35.64981327,127.61,127.57,35.64981327]
[1744814654250,35.64981327,127.62,127.58,35.64981327]
[1744814654744,27.44872306,127.65,127.58,35.64981327]
[1744814655044,35.64981327,127.64,127.59,35.64981327]
[1744814655253,7.86392087,127.65,127.61,35.64981327]
[1744814655254,0.03,127.65,127.61,35.64981327]
[1744814655429,0.03,127.65,127.63,43.48465524]
[1744814655628,0.03,127.65,127.61,7.83637645]
[1744814655848,0.03,127.65,127.63,35.64981327]
[1744814656143,0.03,127.65,127.62,35.64981327]
[1744814656341,0.03,127.65,127.61,43.48618972]
[1744814656639,0.03,127.65,127.6,19.59203712]
[1744814656640,35.64981327,127.64,127.58,26.0]
[1744814656846,35.64981327,127.63,127.58,7.83821915]
[1744814657057,35.64981327,127.61,127.58,7.83821915]
[1744814657353,35.64981327,127.63,127.58,43.48803242]
[1744814657524,35.64981327,127.63,127.59,35.64981327]
[1744814657726,35.64981327,127.63,127.58,43.48779972]
[1744814657931,1.506,127.62,127.56,7.8394481]
[1744814658243,1.506,127.62,127.56,43.48926137]
[1744814658244,35.64981327,127.6,127.56,43.48926137]
[1744814658441,35.64981327,127.59,127.56,7.8394481]
[1744814659040,35.64981327,127.59,127.55,7.83992444]
[1744814659222,1.506,127.62,127.55,7.83992444]
[1744814659430,35.64981327,127.59,127.55,7.83992444]
[1744814659628,35.64981327,127.58,127.55,7.83992444]
[1744814660450,35.64981327,127.59,127.55,7.83992444]
[1744814660928,35.64981327,127.6,127.56,35.64981327]
[1744814661453,35.64981327,127.6,127.56,7.8394481]
[1744814661744,43.48686072,127.6,127.56,7.8394481]
[1744814661948,35.64981327,127.57,127.49,27.45313357]
[1744814662245,35.64981327,127.57,127.47,7.84498313]
[1744814662246,35.64981327,127.53,127.47,7.84498313]
[1744814662445,35.64981327,127.51,127.47,43.4947964]
[1744814662647,35.64981327,127.5,127.46,7.84529383]
[1744814662823,35.64981327,127.5,127.46,43.4951071]
[1744814663026,35.64981327,127.48,127.44,7.84682988]
[1744814663245,35.64981327,127.48,127.44,43.49664315]
[1744814663451,35.64981327,127.48,127.43,7.84726803]
[1744814663452,35.64981327,127.47,127.43,7.84726803]
[1744814663652,35.64981327,127.48,127.43,43.4970813]
[1744814663829,35.64981327,127.48,127.44,35.64981327]
[1744814664029,35.64981327,127.48,127.43,7.84726803]
[1744814664233,35.64981327,127.47,127.43,43.4970813]
[1744814664449,7.84404006,127.49,127.44,35.64981327]
[1744814664745,35.64981327,127.49,127.45,35.64981327]
[1744814664950,13.1,127.51,127.43,7.84726803]
[1744814664951,35.64981327,127.51,127.47,35.64981327]
[1744814665256,35.64981327,127.51,127.46,35.64981327]
[1744814665426,35.64981327,127.5,127.46,35.64981327]
[1744814665624,35.64981327,127.49,127.45,35.64981327]
[1744814666028,35.64981327,127.5,127.43,26.0]
[1744814666254,6.092,127.53,127.46,35.64981327]
[1744814666456,1.5158,127.55,127.5,35.64981327]
[1744814666644,35.64981327,127.56,127.51,35.64981327]
[1744814666835,35.64981327,127.53,127.47,18.64964886]
[1744814667058,35.64981327,127.53,127.48,35.64981327]
[1744814667229,35.64981327,127.53,127.47,18.64964886]
[1744814667430,35.64981327,127.54,127.49,35.64981327]
[1744814667631,35.64981327,127.55,127.5,43.49236394]
[1744814667849,6.3305,127.57,127.52,35.64981327]
[1744814668148,35.64981327,127.56,127.52,35.64981327]
[1744814668351,35.64981327,127.56,127.51,35.64981327]
[1744814668771,35.64981327,127.54,127.5,7.84255067]
[1744814668959,35.64981327,127.53,127.5,7.84255067]
[1744814669170,35.64981327,127.55,127.5,43.49236394]
[1744814669455,6.3305,127.57,127.53,35.64981327]
[1744814669646,35.64981327,127.55,127.48,7.84436774]
[1744814669838,6.3305,127.57,127.52,35.64981327]
[1744814670030,40.6534,127.59,127.49,18.64964886]
[1744814670031,35.64981327,127.58,127.53,35.64981327]
[1744814670634,6.4068,127.6,127.55,35.64981327]
[1744814670938,1.5489,127.63,127.51,31.74964886]
[1744814670939,35.64981327,127.61,127.56,35.64981327]
[1744814671137,33.9553,127.63,127.52,6.1408]
[1744814671138,35.64981327,127.62,127.57,35.64981327]
[1744814671449,35.64981327,127.61,127.57,35.64981327]
[1744814671652,35.64981327,127.61,127.57,43.48823305]
[1744814672050,35.64981327,127.62,127.57,43.48823305]
[1744814672255,35.64981327,127.6,127.57,7.83841978]